fUSD/lending_fUSD_20240520
["ID","MTS","AMOUNT","RATE_DAILY","PERIOD"]
[327535691,1716186645397,-275.5,0.00025,2]
[327535692,1716186645407,-300.0,0.00025,7]
[327535693,1716186645416,-784.8,0.00025,2]
[327535694,1716186645426,-150.0,0.00025,4]
[327535695,1716186645435,-199.16432016,0.00025011,2]
[327535696,1716186645445,-967.78835337,0.00025054,2]
[327535697,1716186645454,-235.71183241,0.00025062,2]
[327535698,1716186645463,-509.97535655,0.00025118,2]
[327535699,1716186645473,-2000.0,0.0002512,2]
[327535700,1716186645482,-200.0,0.0002512,2]
[327535701,1716186645491,-200.0,0.0002512,2]
[327535702,1716186645500,-200.0,0.0002512,2]
[327535703,1716186645509,-967.78835337,0.00025164,2]
[327535704,1716186645519,-166.66666666,0.0002517,2]
[327535705,1716186645529,-1027.641514,0.00025205,2]
[327535706,1716186645538,-538.02243809,0.00025234,2]
[327535707,1716186645548,-967.78835337,0.00025236,2]
[327535708,1716186645559,-151.97251436,0.00025265,2]
[327535709,1716186645569,-235.71183241,0.00025281,2]
[327535710,1716186645579,-186.84082463,0.00025311,2]
[327535711,1716186645590,-190.0,0.0002532,14]
[327535712,1716186645599,-300.23,0.00025342,2]
[327535713,1716186645609,-967.78835337,0.00025353,2]
[327535714,1716186645618,-150.0,0.00025355,2]
[327535715,1716186645628,-150.0,0.00025355,2]
[327535716,1716186645637,-150.0,0.00025355,2]
[327535717,1716186645647,-150.0,0.00025355,2]
[327535718,1716186645657,-163.42,0.00025355,2]
[327535719,1716186645666,-150.0,0.00025355,2]
[327535720,1716186645676,-152.77,0.00025355,2]
[327535722,1716186645686,-150.0,0.00025355,2]
[327535724,1716186645696,-166.64,0.00025355,2]
[327535726,1716186645705,-163.46,0.00025355,2]
[327535728,1716186645714,-150.0,0.00025355,2]
[327535730,1716186645724,-150.0,0.00025355,2]
[327535732,1716186645733,-283.0,0.00025355,2]
[327535734,1716186645743,-163.42,0.00025355,2]
[327535736,1716186645753,-163.42,0.00025355,2]
[327535738,1716186645762,-163.42,0.00025355,2]
[327535739,1716186645772,-162.65,0.00025355,2]
[327535741,1716186645781,-2000.0,0.00025371,2]
[327535743,1716186645791,-200.0,0.00025371,2]
[327535745,1716186645801,-200.0,0.00025371,2]
[327535748,1716186645811,-200.0,0.00025371,2]
[327535750,1716186645821,-162.0,0.00025383,2]
[327535752,1716186645831,-157.05211,0.00025448,10]
[327535754,1716186645842,-186.84082463,0.00025673,2]
[327535755,1716186645852,-410.51,0.00025673,2]
[327535757,1716186645861,-235.71183241,0.000257,2]
[327535759,1716186645871,-157.052014,0.00025748,4]
[327535761,1716186645880,-4213.1217146,0.00025782,2]
[327535764,1716186645889,-71544.1203116,0.00025782,2]
[327535767,1716186645899,-5618.2617894,0.00025782,2]
[327535770,1716186645909,-2711.8110894,0.00025782,2]
[327535774,1716186645919,-187237.0,0.000258,2]
[327535777,1716186645929,-158.48,0.0002589,2]
[327535780,1716186645939,-1655.13,0.000259,2]
[327535783,1716186645948,-1889.76,0.000259,2]
[327535786,1716186645958,-1573.96,0.000259,2]
[327535789,1716186645968,-1182.56210568,0.00025981,2]
[327535792,1716186645977,-311.21771014,0.00026,2]
[327535795,1716186645987,-1477.57942396,0.00026,3]
[327535798,1716186645997,-275.5,0.00026,2]
[327535800,1716186646006,-159.00792521,0.00026006,2]
[327535802,1716186646016,-538.02243809,0.00026007,2]
[327535804,1716186646026,-1310.48,0.00026027,2]
[327535805,1716186646036,-1027.641514,0.00026027,2]
[327535806,1716186646046,-171.37591189,0.00026112,2]
[327535807,1716186646055,-160.50893316,0.00026229,2]
[327535808,1716186646064,-152.18902764,0.00026235,2]
[327535809,1716186646074,-154.61721695,0.00026237,2]
[327535810,1716186646084,-152.18902764,0.00026249,2]
[327535811,1716186646096,-152.18902764,0.00026252,2]
[327535812,1716186646105,-156.4,0.00026274,2]
[327535813,1716186646115,-159.00792521,0.00026289,2]
[327535814,1716186646128,-584.23578725,0.000264,2]
[327535815,1716186646137,-784.10875783,0.000264,2]
[327535816,1716186646147,-212.76119854,0.00026407,2]
[327535817,1716186646156,-186.84082463,0.00026412,2]
[327535818,1716186646167,-157.05211,0.00026448,10]
[327535819,1716186646176,-235.71183241,0.00026466,2]
[327535820,1716186646186,-967.78835337,0.00026473,2]
[327535821,1716186646195,-160.50893316,0.00026553,2]
[327535823,1716186646206,-1182.56210568,0.00026575,2]
[327535824,1716186646217,-216.24329471,0.00026575,2]
[327535825,1716186646227,-813.71626425,0.00026578,2]
[327535826,1716186646236,-166.66666667,0.00026585,2]
[327535827,1716186646247,-151.97251436,0.00026618,2]
[327535828,1716186646256,-538.02243809,0.0002667,2]
[327535829,1716186646266,-157.78511448,0.00026676,2]
[327535830,1716186646275,-235.71183241,0.00026746,2]
[327535831,1716186646285,-157.052014,0.00026748,8]
[327535832,1716186646295,-153.02819881,0.00026825,2]
[327535833,1716186646304,-1027.641514,0.00026849,2]
[327535834,1716186646314,-166.66666666,0.00026868,2]
[327535835,1716186646323,-165.520291,0.00026868,2]
[327535836,1716186646333,-189.756365,0.00026868,2]
[327535837,1716186646344,-491.60481,0.00026868,2]
[327535838,1716186646354,-18632.678494,0.00026868,2]
[327535839,1716186646363,-199.20734,0.00026868,2]
[327535840,1716186646374,-154.65566,0.00026868,2]
[327535841,1716186646383,-403.219229,0.00026868,2]
[327535842,1716186646393,-151.033622,0.00026868,2]
[327535843,1716186646403,-151.020532,0.00026868,2]
[327535844,1716186646412,-191.796927,0.00026868,2]
[327535845,1716186646422,-181.023344,0.00026868,2]
[327535846,1716186646432,-150.698096,0.00026868,2]
[327535848,1716186646442,-150.705849,0.00026868,2]
[327535850,1716186646452,-189.51787,0.00026868,2]
[327535852,1716186646461,-155.6198,0.00026868,2]
[327535853,1716186646471,-189.51787,0.00026868,2]
[327535854,1716186646481,-196.608171,0.00026868,2]
[327535855,1716186646492,-1050.18814,0.00026868,2]
[327535856,1716186646501,-154.08665,0.00026868,2]
[327535857,1716186646511,-159.746488,0.00026868,2]
[327535858,1716186646521,-203.075097,0.00026868,2]
[327535859,1716186646531,-302.744258,0.00026868,2]
[327535860,1716186646540,-4515.664124,0.00026868,2]
[327535861,1716186646549,-150.0,0.00026894,5]
[327535862,1716186646559,-186.84082463,0.00026972,2]
[327535863,1716186646568,-157.38762473,0.00026973,2]
[327535864,1716186646579,-435.94,0.00027,2]
[327535865,1716186646588,-851.27369107,0.00027,2]
[327535866,1716186646599,-170.61066735,0.00027,2]
[327535867,1716186646608,-800.0,0.00027,2]
[327535868,1716186646617,-2000.0,0.00027,2]
[327535869,1716186646627,-275.5,0.00027,2]
[327535870,1716186646636,-2000.0,0.0002701,2]
[327535871,1716186646646,-2000.0,0.0002702,2]
[327535872,1716186646655,-2000.0,0.0002703,2]
[327535873,1716186646664,-2000.0,0.0002704,2]
[327535874,1716186646674,-3295.740081,0.0002705,2]
[327535875,1716186646683,-216.24329471,0.00027096,2]
[327535876,1716186646695,-154.81580749,0.00027114,2]
[327535877,1716186646704,-1005.29745852,0.00027158,2]
[327535878,1716186646714,-154.61721695,0.00027163,2]
[327535879,1716186646723,-1500.0,0.0002717,2]
[327535880,1716186646733,-813.71626425,0.00027191,2]
[327535881,1716186646743,-491.60481,0.00027204,2]
[327535882,1716186646752,-18632.678494,0.00027204,2]
[327535883,1716186646762,-403.219229,0.00027204,2]
[327535884,1716186646774,-1050.18814,0.00027204,2]
[327535885,1716186646784,-203.075097,0.00027204,2]
[327535886,1716186646794,-302.744258,0.00027204,2]
[327535887,1716186646803,-4515.664124,0.00027204,2]
[327535888,1716186646812,-1182.56210568,0.00027226,2]
[327535889,1716186646822,-151.97251436,0.00027237,2]
[327535890,1716186646833,-216.24329471,0.00027299,2]
[327535891,1716186646843,-283.53269239,0.000273,2]
[327535892,1716186646852,-160.92067865,0.000273,2]
[327535893,1716186646861,-157.97548634,0.0002731,2]
[327535894,1716186646871,-155.6198,0.00027316,2]
[327535895,1716186646879,-159.746488,0.00027316,2]
[327535896,1716186646889,-813.71626425,0.00027319,2]
[327535897,1716186646898,-300.0,0.00027397,2]
[327535898,1716186646908,-2000.0,0.00027397,2]
[327535899,1716186646917,-705.4576656,0.00027397,2]
[327535900,1716186646926,-1310.48,0.00027397,4]
[327535901,1716186646936,-22671.08,0.00027397,2]
[327535902,1716186646945,-163.86,0.00027397,2]
[327535903,1716186646954,-1112.31715237,0.00027397,10]
[327535904,1716186647634,-38.49284763,0.00027397,10]
[327535905,1716186647646,-768.86,0.000274,2]
[327535906,1716186647655,-569.85365662,0.000274,2]
[327535907,1716186647665,-4817.97568683,0.000274,2]
[327535908,1716186647675,-1000.0,0.000274,2]
[327535909,1716186647684,-1000.0,0.000274,2]
[327535910,1716186647695,-2000.0,0.000274,2]
[327535911,1716186647704,-1200.0,0.000274,2]
[327535912,1716186647713,-500.0,0.000274,2]
[327535913,1716186647723,-250.16342601,0.000274,2]
[327535914,1716186647732,-655.04,0.000274,2]
[327535915,1716186647741,-655.04,0.000274,2]
[327535916,1716186647751,-655.04,0.000274,2]
[327535917,1716186647760,-655.04,0.000274,2]
[327535918,1716186647770,-655.04,0.000274,2]
[327535919,1716186647779,-655.04,0.000274,2]
[327535920,1716186647789,-655.04,0.000274,2]
[327535921,1716186647799,-655.04,0.000274,2]
[327535922,1716186647809,-655.04,0.000274,2]
[327535923,1716186647818,-655.04,0.000274,2]
[327535924,1716186647828,-166.66666666,0.00027433,2]
[327535925,1716186647837,-157.05211,0.00027448,10]
[327535926,1716186647847,-168.24161347,0.0002745,2]
[327535927,1716186647856,-1889.76,0.000275,2]
[327535928,1716186647865,-1573.96,0.000275,2]
[327535929,1716186647874,-300.74016967,0.00027534,2]
[327535930,1716186647883,-491.60481,0.0002754,2]
[327535931,1716186647892,-18632.678494,0.0002754,2]
[327535932,1716186647902,-403.219229,0.0002754,2]
[327535933,1716186647911,-1050.18814,0.0002754,2]
[327535934,1716186647920,-203.075097,0.0002754,2]
[327535935,1716186647931,-302.744258,0.0002754,2]
[327535936,1716186647939,-4515.664124,0.0002754,2]
[327535937,1716186647949,-191.796927,0.0002754,2]
[327535938,1716186647959,-150.705849,0.0002754,2]
[327535939,1716186647968,-196.608171,0.0002754,2]
[327535940,1716186647978,-186.84082463,0.00027549,2]
[327535941,1716186647988,-162.67573834,0.00027567,2]
[327535942,1716186647997,-216.24329471,0.00027575,2]
[327535943,1716186648006,-509.97535655,0.00027582,2]
[327535944,1716186648016,-184.20292855,0.0002768,2]
[327535945,1716186648025,-967.78835337,0.00027698,2]
[327535946,1716186648034,-3000.0,0.000277,2]
[327535947,1716186648044,-544.0,0.00027723,2]
[327535948,1716186648053,-157.052014,0.00027748,8]
[327535949,1716186648062,-155.6198,0.00027764,2]
[327535950,1716186648072,-159.746488,0.00027764,2]
[327535951,1716186648081,-216.24329471,0.00027779,2]
[327535952,1716186648090,-405.07638212,0.00027811,2]
[327535953,1716186648100,-795.96012507,0.00027811,2]
[327535954,1716186648109,-813.71626425,0.00027834,2]
[327535955,1716186648118,-491.60481,0.00027876,2]
[327535956,1716186648131,-18632.678494,0.00027876,2]
[327535957,1716186648141,-403.219229,0.00027876,2]
[327535958,1716186648150,-1050.18814,0.00027876,2]
[327535959,1716186648159,-203.075097,0.00027876,2]
[327535960,1716186648170,-302.744258,0.00027876,2]
[327535961,1716186648180,-4515.664124,0.00027876,2]
[327535962,1716186648189,-2712.01072535,0.0002789,22]
[327535963,1716186648198,-410.51,0.00027937,2]
[327535964,1716186648209,-1009.88,0.00028,2]
[327535965,1716186648220,-406.852721,0.00028,2]
[327535966,1716186648229,-317.66,0.00028,2]
[327535967,1716186648239,-225.33504515,0.00028,2]
[327535968,1716186648247,-199.16432016,0.00028089,2]
[327535969,1716186648257,-813.71626425,0.000282,2]
[327535970,1716186648266,-491.60481,0.00028212,2]
[327535971,1716186648275,-18632.678494,0.00028212,2]
[327535972,1716186648285,-403.219229,0.00028212,2]
[327535973,1716186648294,-1050.18814,0.00028212,2]
[327535974,1716186648303,-203.075097,0.00028212,2]
[327535975,1716186648312,-302.744258,0.00028212,2]
[327535976,1716186648322,-4515.664124,0.00028212,2]
[327535977,1716186648331,-151.033622,0.00028212,2]
[327535978,1716186648340,-191.796927,0.00028212,2]
[327535979,1716186648351,-181.023344,0.00028212,2]
[327535980,1716186648360,-150.698096,0.00028212,2]
[327535981,1716186648370,-150.705849,0.00028212,2]
[327535982,1716186648379,-189.51787,0.00028212,2]
[327535983,1716186648389,-196.608171,0.00028212,2]
[327535984,1716186648398,-155.6198,0.00028212,2]
[327535985,1716186648407,-159.746488,0.00028212,2]
[327535986,1716186648417,-2000.0,0.00028219,2]
[327535987,1716186648426,-967.78835337,0.0002824,2]
[327535988,1716186648435,-1500.0,0.00028242,2]
[327535989,1716186648444,-216.24329471,0.00028247,2]
[327535990,1716186648453,-157.97548634,0.00028289,2]
[327535991,1716186648463,-216.24329471,0.00028316,2]
[327535992,1716186648472,-167.9037705,0.0002838,2]
[327535993,1716186648481,-152.18902764,0.00028444,2]
[327535994,1716186648491,-235.71183241,0.00028447,2]
[327535995,1716186648500,-157.05211,0.00028448,14]
[327535996,1716186648508,-538.02243809,0.00028527,2]
[327535997,1716186648519,-186.84082463,0.00028625,2]
[327535998,1716186648528,-233.20776853,0.000287,2]
[327535999,1716186648538,-151.97251436,0.00028743,2]
[327536000,1716186648548,-157.052014,0.00028748,14]
[327536001,1716186648559,-1310.48,0.00028767,6]
[327536002,1716186648567,-13436.76469519,0.00028798,5]
[327536003,1716186648577,-153.30748744,0.00028804,2]
[327536004,1716186648586,-150.0,0.00028874,2]
[327536005,1716186648596,-1165.9925961,0.00028908,4]
[327536006,1716186648605,-186.84082463,0.00028932,2]
[327536007,1716186648615,-152.18902764,0.00028965,2]
[327536008,1716186648624,-813.71626425,0.00028966,2]
[327536009,1716186648634,-1182.56210568,0.00028984,2]
[327536010,1716186648644,-242141.51464958,0.00029,2]
[327536011,1716186649138,-530.46900912,0.00029,2]
[327536012,1716186650555,-261.19852924,0.000129,2]
[327536013,1716186650571,-192.95714798,0.000129,2]
[327536014,1716186650587,-500.0,0.00015923,2]
[327536015,1716186650604,-80.86533228,0.00026784,2]
[327536016,1716186650698,-219.13466772,0.00026784,2]
[327536017,1716186650712,-150.0,0.00027922,2]
[327536018,1716186650727,-300.0,0.00027967,2]
[327536019,1716186650742,-150.0,0.00028016,2]
[327536020,1716186650769,-150.0,0.00028087,2]
[327536021,1716186650791,-150.0,0.00028132,2]
[327536022,1716186650812,-150.0,0.00028218,2]
[327536023,1716186650832,-150.0,0.0002829,2]
[327536024,1716186650852,-150.0,0.00028412,2]
[327536025,1716186650870,-150.0,0.00028424,2]
[327536026,1716186650887,-150.0,0.00028516,2]
[327536027,1716186650904,-150.0,0.0002854,2]
[327536028,1716186650921,-150.0,0.00028541,2]
[327536029,1716186650937,-150.0,0.00028593,2]
[327536030,1716186650953,-150.0,0.00028607,2]
[327536031,1716186650969,-150.0,0.00028657,2]
[327536032,1716186650985,-150.0,0.00028665,2]
[327536033,1716186651001,-150.0,0.00028917,2]
[327536034,1716186651017,-150.0,0.00028951,2]
[327536035,1716186651032,-150.0,0.0002896,2]
[327536036,1716186651047,-150.0,0.00028965,2]
[327536037,1716186651062,-150.0,0.00028991,2]
[327536038,1716186651076,-2811.80469997,0.00029,2]
[327536039,1716186651138,-150.0,0.00028027,2]
[327536040,1716186651153,-150.0,0.00028455,2]
[327536041,1716186651167,-150.0,0.00028608,2]
[327536042,1716186651181,-150.0,0.00028903,2]
[327536043,1716186651197,-150.0,0.00028927,2]
[327536044,1716186651211,-85.9,0.00029,2]
[327536045,1716186652471,-534.6,0.00013973,2]
[327536046,1716186652480,-155.0,0.0001958,2]
[327536047,1716186652489,-150.0,0.00024533,2]
[327536048,1716186652498,-1047.32,0.00024533,2]
[327536049,1716186652507,-163.42,0.00024533,2]
[327536050,1716186652517,-150.0,0.00024533,2]
[327536051,1716186652527,-261.19852924,0.000264,2]
[327536052,1716186652536,-150.0,0.00027907,2]
[327536053,1716186652545,-150.0,0.00027966,2]
[327536054,1716186652554,-150.0,0.00027982,2]
[327536055,1716186652564,-150.0,0.00028033,2]
[327536056,1716186652573,-150.0,0.00028054,2]
[327536057,1716186652582,-51.51603353,0.00028098,2]
[327536058,1716186652606,-98.48396647,0.00028098,2]
[327536059,1716186652615,-150.0,0.00028124,2]
[327536060,1716186652624,-150.0,0.00028129,2]
[327536061,1716186652633,-150.0,0.00028167,2]
[327536062,1716186652643,-150.0,0.0002821,2]
[327536063,1716186652652,-150.0,0.00028279,2]
[327536064,1716186652661,-117.75464806,0.0002828,2]
[327536065,1716186652672,-32.24535194,0.0002828,2]
[327536066,1716186652681,-150.0,0.00028292,2]
[327536067,1716186652690,-150.0,0.00028306,2]
[327536068,1716186652699,-150.0,0.0002832,2]
[327536069,1716186652708,-150.0,0.00028358,2]
[327536070,1716186652717,-150.0,0.00028383,2]
[327536071,1716186652726,-150.0,0.00028391,2]
[327536072,1716186652735,-150.0,0.0002841,2]
[327536073,1716186652744,-150.0,0.00028415,2]
[327536074,1716186652753,-150.0,0.00028466,2]
[327536075,1716186652763,-150.0,0.00028479,2]
[327536076,1716186652772,-150.0,0.00028484,2]
[327536077,1716186652780,-150.0,0.00028498,2]
[327536078,1716186652791,-150.0,0.00028543,2]
[327536079,1716186652802,-150.0,0.00028593,2]
[327536080,1716186652811,-150.0,0.00028601,2]
[327536081,1716186652821,-150.0,0.00028608,2]
[327536082,1716186652832,-150.0,0.00028634,2]
[327536083,1716186652841,-150.0,0.00028654,2]
[327536084,1716186652851,-150.0,0.0002868,2]
[327536085,1716186652860,-150.0,0.00028708,2]
[327536086,1716186652869,-150.0,0.00028721,2]
[327536087,1716186652879,-150.0,0.00028743,2]
[327536088,1716186652888,-150.0,0.00028751,2]
[327536089,1716186652898,-150.0,0.00028771,2]
[327536090,1716186652907,-150.0,0.00028789,2]
[327536091,1716186652918,-150.0,0.00028805,2]
[327536092,1716186652929,-150.0,0.0002883,2]
[327536093,1716186652939,-150.0,0.00028854,2]
[327536094,1716186652950,-150.0,0.00028874,2]
[327536095,1716186652960,-150.0,0.000289,2]
[327536096,1716186652969,-150.0,0.00028914,2]
[327536097,1716186652979,-34006.80645934,0.00029,2]
[327536098,1716186672463,724.96,0.0003,120]
[327536137,1716186904525,203.0,0.0001959,15]
[327536138,1716186904980,203.0,0.0001958,15]
[327536139,1716186905517,203.0,0.0001957,15]
[327536149,1716187144287,150.5,0.0001959,15]
[327536150,1716187144771,182.32,0.0001958,15]
[327536151,1716187145265,150.5,0.0001959,15]
[327536152,1716187145794,150.5,0.0001958,15]
[327536153,1716187146241,150.5,0.0001957,15]
[327536156,1716187182020,-364.27737293,9.672e-05,2]
[327536157,1716187182042,-2581.929039,9.673e-05,2]
[327536159,1716187189729,525.90822352,9.724e-05,2]
[327536160,1716187201056,289.22433229,9.673e-05,2]
[327536161,1716187201462,155.0,9.673e-05,2]
[327536162,1716187202492,83.66103226,9.673e-05,2]
[327536163,1716187354106,-399.56427023,9.663e-05,2]
[327536164,1716187354128,-150.0,9.672e-05,2]
[327536165,1716187354151,-3450.43572977,9.673e-05,2]
[327536166,1716187355656,-4000.0,9.673e-05,2]
[327536167,1716187356018,-4000.0,9.673e-05,2]
[327536168,1716187356836,-4000.0,9.673e-05,2]
[327536169,1716187357649,-4000.0,9.673e-05,2]
[327536170,1716187358273,-196.06341171,9.673e-05,2]
[327536171,1716187358296,-3803.93658829,9.673e-05,2]
[327536172,1716187359263,-3714.73754209,9.673e-05,2]
[327536173,1716187359286,-285.26245791,9.673e-05,2]
[327536174,1716187359929,-7.0912858,9.673e-05,2]
[327536175,1716187359951,-3992.9087142,9.673e-05,2]
[327536176,1716187360476,-4000.0,9.673e-05,2]
[327536177,1716187362293,-4000.0,9.673e-05,2]
[327536178,1716187364766,-4000.0,9.673e-05,2]
[327536179,1716187365688,-4000.0,9.673e-05,2]
[327536180,1716187366465,-3965.03505054,9.673e-05,2]
[327536181,1716187366486,-34.96494946,9.673e-05,2]
[327536182,1716187377019,-525.93177104,9.673e-05,2]
[327536183,1716187377040,-614.06822896,9.673e-05,2]
[327536184,1716187384558,150.5,0.0001959,15]
[327536185,1716187385015,150.5,0.0001959,15]
[327536186,1716187385094,150.5,0.0001958,15]
[327536187,1716187385578,150.5,0.0001957,15]
[327536188,1716187385607,150.5,0.0001958,15]
[327536189,1716187386129,150.5,0.0001957,15]
[327536190,1716187463295,170.29,0.0003,120]
[327536191,1716187478175,160.92067864,0.0003,120]
[327536192,1716187508020,162.0,0.0003,120]
[327536193,1716187568086,-364.27737293,9.188e-05,2]
[327536194,1716187568108,-355.01577903,9.189e-05,2]
[327536195,1716187568131,-184.04,9.583e-05,2]
[327536196,1716187568152,-150.0,9.672e-05,2]
[327536197,1716187568173,-150.0,9.672e-05,2]
[327536198,1716187568195,-2796.66684804,9.673e-05,2]
[327536199,1716187570061,-4000.0,9.673e-05,2]
[327536200,1716187570757,-4000.0,9.673e-05,2]
[327536201,1716187571433,-4000.0,9.673e-05,2]
[327536202,1716187578396,-4000.0,9.673e-05,2]
[327536203,1716187588915,-4000.0,9.673e-05,2]
[327536204,1716187589520,-4000.0,9.673e-05,2]
[327536205,1716187590153,-4000.0,9.673e-05,2]
[327536206,1716187619689,-155.0,9.672e-05,2]
[327536207,1716187619713,-3845.0,9.673e-05,2]
[327536208,1716187620485,-4000.0,9.673e-05,2]
[327536209,1716187621306,-4000.0,9.673e-05,2]
[327536210,1716187624254,150.5,0.0001959,15]
[327536211,1716187624781,150.5,0.0001958,15]
[327536212,1716187625258,218.55,0.0001957,15]
[327536217,1716187679894,162.0,0.0003,120]
[327536218,1716187711737,1216.88919067,0.0003,120]
[327536247,1716187832899,-281.84379049,9.667e-05,2]
[327536248,1716187832909,-155.0,9.668e-05,2]
[327536249,1716187832919,-150.0,9.671e-05,2]
[327536250,1716187832929,-437.18,0.00010121,2]
[327536251,1716187832938,-364.27737293,0.00010958,2]
[327536252,1716187832948,-198.82,0.00010959,2]
[327536253,1716187832959,-165.68,0.00010959,2]
[327536254,1716187832970,-828.45,0.00010959,2]
[327536255,1716187832979,-2461.29111359,0.000118,2]
[327536256,1716187832988,-299.14,0.00011843,2]
[327536257,1716187832997,-250.0,0.0001192,2]
[327536258,1716187833007,-150.99,0.0001192,2]
[327536259,1716187833016,-1297.77550926,0.00012063,2]
[327536260,1716187833026,-1000.0,0.00012111,2]
[327536261,1716187833037,-150.99,0.00012111,2]
[327536262,1716187833047,-437.18,0.00012385,2]
[327536263,1716187833055,-858.15642892,0.000126,2]
[327536264,1716187833065,-4249.09172084,0.00012687,2]
[327536265,1716187833074,-155.78986976,0.00012697,2]
[327536266,1716187833083,-234.22233037,0.00012698,2]
[327536267,1716187833092,-4277.12917432,0.00012698,2]
[327536268,1716187833102,-155.0,0.00012698,2]
[327536269,1716187833111,-155.17442459,0.00012698,2]
[327536270,1716187833120,-939.36800953,0.00012698,2]
[327536271,1716187833130,-157.8049578,0.00012698,2]
[327536272,1716187833139,-803.90976087,0.00012698,2]
[327536273,1716187833148,-251.93542734,0.00012698,2]
[327536274,1716187833157,-158.74752963,0.00012698,2]
[327536275,1716187833167,-12000.0,0.00012698,2]
[327536276,1716187833176,-1614.88890749,0.00012699,2]
[327536277,1716187833185,-499.99,0.00012699,2]
[327536278,1716187833194,-169.3421,0.000127,2]
[327536279,1716187833204,-1280.02781071,0.000127,2]
[327536290,1716187838195,-465.75464,0.000127,2]
[327536295,1716187838206,-357.72052,0.000127,2]
[327536298,1716187838218,-531.79482725,0.000127,2]
[327536320,1716187838423,-82843.01480204,0.000127,2]
[327536321,1716187838433,-245000.0,0.000127,2]
[327536322,1716187838442,-1000.0,0.000127,2]
[327536323,1716187838452,-243.04582929,0.00012898,2]
[327536324,1716187838462,-411.31225165,0.00012899,2]
[327536325,1716187838471,-10010.09637539,0.000129,2]
[327536326,1716187838481,-286.30834232,0.000129,2]
[327536327,1716187838490,-297.4856247,0.000129,2]
[327536328,1716187838499,-159.33145616,0.000129,2]
[327536329,1716187838508,-159.33145612,0.000129,2]
[327536330,1716187838518,-159.33145612,0.000129,2]
[327536331,1716187838527,-159.33145612,0.000129,2]
[327536332,1716187838542,-159.33145612,0.000129,2]
[327536333,1716187838552,-261.19852924,0.000129,2]
[327536334,1716187838561,-389.49052484,0.000129,2]
[327536335,1716187838571,-366.771428,0.000129,2]
[327536336,1716187838580,-389.49052483,0.00012902,2]
[327536337,1716187838590,-41822.51855396,0.00012903,2]
[327536368,1716187840466,-623.26266108,0.00012903,2]
[327536369,1716187840702,-2500.0,0.00012903,2]
[327536370,1716187840716,-25173.28138365,0.00012903,2]
[327536371,1716187840728,-982.0491942,0.00012903,2]
[327536372,1716187840740,-2940.96388949,0.00012903,2]
[327536373,1716187840752,-4652.1431293,0.00012903,2]
[327536374,1716187840764,-635.49838614,0.00012903,2]
[327536555,1716187844930,-364.27737293,0.00012897,2]
[327536556,1716187844940,-67.88262707,0.00012898,2]
[327536557,1716187845196,-175.1632022,0.00012898,2]
[327536558,1716187845206,-1209.74159924,0.00012903,2]
[327536559,1716187845220,-8663.28939792,0.00012903,2]
[327536560,1716187845232,-2951.52100116,0.00012903,2]
[327536567,1716187850384,-211.34838905,0.00012897,2]
[327536568,1716187850394,-243.04582927,0.00012898,2]
[327536569,1716187850404,-410.56645948,0.00012902,2]
[327536570,1716187850413,-66278.62573892,0.00012903,2]
[327536571,1716187850423,-389.49052483,0.00012903,2]
[327536572,1716187850432,-4418.92460998,0.0001298,2]
[327536573,1716187850441,-151.78,0.0001299,2]
[327536574,1716187850451,-151.78,0.0001299,2]
[327536575,1716187850460,-151.78,0.0001299,2]
[327536576,1716187850469,-151.78,0.0001299,2]
[327536577,1716187850478,-151.78,0.0001299,2]